Workbook

Sheet Prop Characteristics
B2: Property Characteristics / Costs
B5: P1 Cost PSF: | C5: $140
B6: P2 Cost PSF: | C6: $124
B8: Phase One Gross Area (SF): | C8: =C9*(1+0.52) -> 1,520,000
B9: Phase One Rentable Area (SF): | C9: 1,000,000
B10: Phase Two Gross Area (SF): | C10: =C11*(1+0.25) -> 1,250,000
B11: Phase Two Rentable Area (SF): | C11: 1,000,000
B13: Option Cost Premium: | C13: 12%
B15: Phase 1 Cost Without Option: | C15: =(C8*C5)/1000 -> $212,800
B16: Option Price: | C16: =C15*C13 -> $25,536
B17: Phase 1 With Option: | C17: =C15*(1+C13) -> $238,336
B18: Phase2 Cost: | C18: =(C10*C6)/1000 -> $155,000
B19: Phase 1+2: | C19: =C17+C18 -> $393,336

Sheet Assumptions
A2: Assumptions
A4: Phase One Size (Rentable Area) | B4: ='Prop Characteristics'!C9 -> 1,000,000 | C4: SF
A5: Phase Two Size (Rentable Area) | B5: ='Prop Characteristics'!C11 -> 1,000,000 | C5: SF
A6: Total Size Rentable Area | B6: =SUM(B4:B5) -> 2,000,000 | C6: SF
A8: Construction Cost Growth | B8: 2.0%
A10: Operating Expenses | B10: $7.00 | C10: PSF
A11: Operating Expenses Growth | B11: 2.0% | C11: <== Not used
A13: Interest Rates
A14: 10 Year US Treasury | B14: 6.35% | C14: <== 1997 Average
A15: Risk Free Rate | B15: =B14-0.015 -> 4.85% | C15: <== 10 Yr Treasury Less 150 bps
A16: Stabilized Class A Risk Premium | B16: 3.50% | C16: <== gm, p252
A17: Discount Rate (r = rf + RP) | B17: =SUM(B15:B16) -> 8.35%
A20: Exit Cap Rate | B20: 7.50% | C20: <== Average 2007 Downtown Office

Sheet Rent
A1: Rent(0) | B1: $24.00
A2: Eg | B2: 1.00% | C2: expected rent growth
A3: SDg | B3: 0.35% | C3: standard deviation of expected growth
A4: sigma | B4: 4.00% | C4: volitality
A5: noise(t) | B5: 8.00% | C5: noise
A6: SDg realization | B6: =(RAND()+RAND()-1)*2*B3 -> -0.002123
B7: 0.300 | C7: mean reversion rate
A10: Year | B10: Expected Rent | C10: Realized Rent | D10: sigma(t) | E10: Trend Rent | F10: noise(t) | G10: Achieved Rent | I10: Trend Rent Mean Revert | J10: Achieved Rent Mean Revert | K10: CAGR
A11: 0 | B11: =B1 -> 24.00 | C11: =B1 -> 24.00 | E11: =B11 -> 24.00 | F11: =((RAND()+RAND())-1)*2*$B$5 -> -0.0348 | G11: =E11*(1+$F11) -> 23.16 | I11: =B11 -> 24.00 | J11: =I11*(1+$F11) -> 23.16
A12: 1 | B12: =B11*(1+$B$2) -> 24.24 | C12: =C11*(1+$B$2+$B$6) -> 24.19 | D12: =((RAND()+RAND())-1)*2*$B$4 -> 2.72% | E12: =E11*(1+$B$2+$B$6+$D12) -> 24.84 | F12: =((RAND()+RAND())-1)*2*$B$5 -> 0.0959 | G12: 27.22 | I12: =I11*(1+$B$2+$B$6+$D12+$B$7*(C11-I11)/C11) -> 24.84 | J12: 27.22 | K12: =((J12/$J$11)^(1/(A12-$A$11)))-1 -> 17.53%
A13: 2 | B13: =B12*(1+$B$2) -> 24.48 | C13: =C12*(1+$B$2+$B$6) -> 24.38 | D13: =((RAND()+RAND())-1)*2*$B$4 -> 2.33% | E13: =E12*(1+$B$2+$B$6+$D13) -> 25.61 | F13: -0.0678 | G13: 23.88 | I13: =I12*(1+$B$2+$B$6+$D13+$B$7*(C12-I12)/C12) -> 25.41 | J13: 23.69 | K13: =((J13/$J$11)^(1/(A13-$A$11)))-1 -> 1.13%
A14: 3 | B14: 24.73 | C14: =C13*(1+$B$2+$B$6) -> 24.57 | D14: 4.42% | E14: 26.95 | F14: 0.0395 | G14: 28.01 | I14: 26.41 | J14: 27.46 | K14: 5.83%
A15: 4 | B15: 24.97 | C15: 24.77 | D15: 4.46% | E15: 28.36 | F15: -0.0497 | G15: 26.95 | I15: 27.21 | J15: 25.85 | K15: 2.78%
A16: 5 | B16: 25.22 | C16: =C15*(1+$B$2+$B$6) -> 24.96 | D16: -0.20% | E16: 28.53 | F16: -0.0051 | G16: 28.38 | I16: 26.56 | J16: 26.43 | K16: 2.67%
A17: 6 | B17: 25.48 | C17: 25.16 | D17: 2.01% | E17: 29.33 | F17: 0.1247 | G17: 32.98 | I17: 26.79 | J17: 30.13 | K17: 4.48%
A18: 7 | B18: 25.73 | C18: =C17*(1+$B$2+$B$6) -> 25.36 | D18: 1.01% | E18: 29.86 | F18: -0.1100 | G18: 26.57 | I18: 26.75 | J18: 23.81 | K18: 0.39%
A19: 8 | B19: 25.99 | C19: 25.55 | D19: -4.92% | E19: 28.62 | F19: 0.0119 | G19: 28.96 | I19: 25.20 | J19: 25.50 | K19: 1.21%
A20: 9 | B20: 26.25 | C20: 25.76 | D20: 4.54% | E20: =E19*(1+$B$2+$B$6+$D20) -> 30.15 | F20: -0.1394 | G20: 25.94 | I20: =I19*(1+$B$2+$B$6+$D20+$B$7*(C19-I19)/C19) -> 26.65 | J20: 22.94 | K20: -0.11%
A21: 10 | B21: 26.51 | C21: 25.96 | D21: 1.93% | E21: 30.97 | F21: -0.0051 | G21: 30.81 | I21: 27.10 | J21: 26.96 | K21: 1.53%
A22: 11 | B22: 26.78 | C22: 26.16 | D22: -0.45% | E22: 31.07 | F22: 0.1054 | G22: 34.35 | I22: 26.83 | J22: 29.66 | K22: 2.27%
A23: 12 | B23: 27.04 | C23: 26.37 | D23: -4.23% | E23: 30.00 | F23: -0.0328 | G23: =E23*(1+$F23) -> 29.02 | I23: 25.70 | J23: 24.86 | K23: 0.59%
A24: 13 | B24: 27.31 | C24: 26.58 | D24: 1.91% | E24: 30.81 | F24: 0.1234 | G24: 34.61 | I24: 26.59 | J24: 29.87 | K24: 1.98%
A25: 14 | B25: 27.59 | C25: 26.79 | D25: 1.27% | E25: 31.45 | F25: 0.0294 | G25: 32.37 | I25: 27.13 | J25: 27.93 | K25: 1.35%
A26: 15 | B26: 27.86 | C26: 27.00 | D26: 1.98% | E26: 32.31 | F26: -0.0025 | G26: 32.23 | I26: 27.78 | J26: 27.71 | K26: 1.20%
A27: 16 | B27: 28.14 | C27: 27.21 | D27: -4.54% | E27: 31.10 | F27: 0.1091 | G27: 34.50 | I27: 26.49 | J27: 29.39 | K27: 1.50%
A28: 17 | B28: 28.42 | C28: 27.42 | D28: -1.84% | E28: 30.77 | F28: -0.1208 | G28: 27.06 | I28: 26.43 | J28: 23.23 | K28: 0.02%
A29: 18 | B29: 28.71 | C29: 27.64 | D29: -2.70% | E29: 30.19 | F29: -0.0088 | G29: 29.92 | I29: 26.21 | J29: 25.98 | K29: 0.64%
A30: 19 | B30: 28.99 | C30: 27.86 | D30: 2.11% | E30: 31.06 | F30: 0.0803 | G30: 33.55 | I30: 27.37 | J30: 29.57 | K30: 1.29%
A31: 20 | B31: 29.28 | C31: 28.08 | D31: -0.13% | E31: 31.26 | F31: 0.0143 | G31: 31.71 | I31: 27.70 | J31: 28.09 | K31: 0.97%

Sheet Lease-Up
C3: Year 1 Range: | D3: 30.0% | E3: 70.0% | K3: Subsequent Year Mamimum of Remainder | L3: =((RAND()+RAND())-1)*((N3-M3)/2)+((N3-M3)/2)+M3 -> 41% | M3: 25% | N3: 75% | T3: Year 1 Distribution: | U3: Triangular
A5: Year | B5: 1 | C5: =B5+1 -> 2 | D5: =C5+1 -> 3 | E5: 4 | F5: 5 | G5: 6 | H5: 7 | I5: =H5+1 -> 8 | J5: 9 | K5: 10 | L5: 11 | M5: 12 | N5: 13 | O5: 14 | P5: 15 | Q5: 16
A7: Lease-Up Per Year | B7: =IF(U3="Triangular",((RAND()+RAND())-1)*((E3-D3)/2)+((E3-D3)/2)+D3,(RAND()*(E3-D3))+D3) -> 49.39% | C7: =IF(C9<=$L$3,(C9*C8),($L$3*C8)) -> 20.55% | D7: 0.75% | E7: 2.47% | F7: 9.07% | G7: 7.22% | H7: 0.81% | I7: 3.45% | J7: 0.27% | K7: 2.45% | L7: 1.45% | M7: 0.11% | N7: 0.82% | O7: 0.49% | P7: 0.29% | Q7: 0.00%
C8: =1-B7 -> 50.61% | D8: =1-SUM(B7:C7) -> 30.06% | E8: =1-SUM(B7:D7) -> 29.31% | F8: =1-SUM(B7:E7) -> 26.84% | G8: =1-SUM(B7:F7) -> 17.77% | H8: =1-SUM(B7:G7) -> 10.55% | I8: =1-SUM(B7:H7) -> 9.74% | J8: =1-SUM(B7:I7) -> 6.29% | K8: =1-SUM(B7:J7) -> 6.02% | L8: =1-SUM(B7:K7) -> 3.58% | M8: =1-SUM(B7:L7) -> 2.12% | N8: =1-SUM(B7:M7) -> 2.02% | O8: =1-SUM(B7:N7) -> 1.20% | P8: =1-SUM(B7:O7) -> 0.71% | Q8: =1-SUM(B7:P7) -> 0.42%
C9: =RAND() -> 54.55% | D9: =RAND() -> 2.49% | E9: 8.43% | F9: 33.80% | G9: 69.85% | H9: 7.67% | I9: 35.39% | J9: 4.27% | K9: 46.94% | L9: 55.72% | M9: 5.12% | N9: 74.43% | O9: 48.58% | P9: 51.68%
A11: Cumulative Occupancy | B11: =B7 -> 49.39% | C11: =B11+C7 -> 69.94% | D11: 70.69% | E11: 73.16% | F11: 82.23% | G11: 89.45% | H11: 90.26% | I11: 93.71% | J11: 93.98% | K11: 96.42% | L11: 97.88% | M11: 97.98% | N11: 98.80% | O11: 99.29% | P11: 99.58% | Q11: 99.58%
A13: Vacancy | B13: =1-B11 -> 50.61% | C13: =1-C11 -> 30.06% | D13: 29.31% | E13: 26.84% | F13: 17.77% | G13: 10.55% | H13: 9.74% | I13: 6.29% | J13: 6.02% | K13: 3.58% | L13: 2.12% | M13: 2.02% | N13: 1.20% | O13: 0.71% | P13: 0.42% | Q13: 0.42%

Sheet Phase 1
A2: Scenario | B2: Phase 1 | G2: <== From Assumptions Tab
A4: Size (Rentable Area) | B4: =Assumptions!B4 -> 1,000,000 | C4: SF
A5: Phase Two Size (Rentable Area) | B5: =Assumptions!B5 -> 1,000,000 | C5: SF
A6: Total Size Rentable Area | B6: =Assumptions!B6 -> 2,000,000 | C6: SF
A10: Operating Expenses | B10: =Assumptions!B10 -> $7.00 | C10: PSF
A11: Operating Expenses Growth | B11: =Assumptions!B11 -> 2.0% | C11: =Assumptions!C11 -> <== Not used
A13: Interest Rates
A14: 10 Year US Treasury | B14: =Assumptions!B14 -> 6.35% | C14: <== 1997 Average
A15: Risk Free Rate | B15: =Assumptions!B15 -> 4.85% | C15: <== 10 Yr Treasury Less 150 bps
A16: Stabilized Class A Risk Premium | B16: 3.00% | C16: <== gm, p252
A17: OCC (r = rf + RP) | B17: =Assumptions!B17 -> 8.35%
H18: P1 | J18: =B4/B6 -> 50%
A19: Discount Rate | B19: =Assumptions!B19 -> 9.50% | C19: <== NCRIEF 1997 Historic Total Return | H19: P2 | J19: =B5/B6 -> 50%
A20: Exit Cap Rate | B20: =Assumptions!B20 -> 7.50% | C20: <== Average 2007 Downtown Office | H20: Total Building | J20: =SUM(J18:J19) -> 100%
D23: 1 | E23: 2 | F23: 3 | G23: 4 | H23: 5 | I23: 6 | J23: 7 | K23: 8 | L23: 9 | M23: 10 | N23: 11 | O23: 12 | P23: 13 | Q23: 14 | R23: 15 | S23: 16
A24: Rent | D24: =Rent!J12 -> 27.22 | E24: =Rent!J13 -> 23.69 | F24: =Rent!J14 -> 27.46 | G24: =Rent!J15 -> 25.85 | H24: =Rent!J16 -> 26.43 | I24: =Rent!J17 -> 30.13 | J24: =Rent!J18 -> 23.81 | K24: =Rent!J19 -> 25.50 | L24: =Rent!J20 -> 22.94 | M24: =Rent!J21 -> 26.96 | N24: =Rent!J22 -> 29.66 | O24: =Rent!J23 -> 24.86 | P24: =Rent!J24 -> 29.87 | Q24: =Rent!J25 -> 27.93 | R24: =Rent!J26 -> 27.71 | S24: =Rent!J27 -> 29.39
A26: Cumulative Total Lease-Up | D26: ='Lease-Up'!B11 -> 49% | E26: ='Lease-Up'!C11 -> 70% | F26: ='Lease-Up'!D11 -> 71% | G26: ='Lease-Up'!E11 -> 73% | H26: ='Lease-Up'!F11 -> 82% | I26: ='Lease-Up'!G11 -> 89% | J26: ='Lease-Up'!H11 -> 90% | K26: ='Lease-Up'!I11 -> 94% | L26: ='Lease-Up'!J11 -> 94% | M26: ='Lease-Up'!K11 -> 96% | N26: ='Lease-Up'!L11 -> 98% | O26: ='Lease-Up'!M11 -> 98% | P26: ='Lease-Up'!N11 -> 99% | Q26: ='Lease-Up'!O11 -> 99% | R26: ='Lease-Up'!P11 -> 100% | S26: ='Lease-Up'!Q11 -> 100%
A27: % of P1 Leased | D27: =IF(D26/$J$18<1, D26/$J$18,1) -> 99% | E27: 100% | F27: 100% | G27: 100% | H27: 100% | I27: 100% | J27: 100% | K27: 100% | L27: 100% | M27: 100% | N27: 100% | O27: 100% | P27: 100% | Q27: 100% | R27: 100% | S27: 100%
D30: PROJECTED NET OPERATING INCOME AND CASH FLOW FROM OPERATIONS
D31: ( $ in Thousands)
A33: Year | C33: 1995-1997 | D33: 1998 | E33: 1999 | F33: 2000 | G33: 2001 | H33: 2002 | I33: 2003 | J33: 2004 | K33: 2005 | L33: 2006 | M33: 2007 | N33: 2008 | O33: 2009 | P33: 2010 | Q33: 2011 | R33: 2012 | S33: 2013
C34: 0 | D34: 1 | E34: 2 | F34: 3 | G34: 4 | H34: 5 | I34: 6 | J34: 7 | K34: 8 | L34: 9 | M34: 10 | N34: 11 | O34: 12 | P34: 13 | Q34: 14 | R34: 15 | S34: 16
A36: Development Cost | C36: =-'Prop Characteristics'!C15 -> (212,800)
A38: Potential Gross Income | D38: =($B$4*$D$24)/1000 -> 27,224 | E38: =($B$4*$D$24)/1000 -> 27,224 | F38: =($B$4*$D$24)/1000 -> 27,224 | G38: =($B$4*$D$24)/1000 -> 27,224 | H38: =($B$4*$D$24)/1000 -> 27,224 | I38: =($B$4*$I$24)/1000 -> 30,134 | J38: =($B$4*$I$24)/1000 -> 30,134 | K38: =($B$4*$I$24)/1000 -> 30,134 | L38: =($B$4*$I$24)/1000 -> 30,134 | M38: =($B$4*$I$24)/1000 -> 30,134 | N38: =($B$4*$N$24)/1000 -> 29,663 | O38: =($B$4*$N$24)/1000 -> 29,663 | P38: =($B$4*$N$24)/1000 -> 29,663 | Q38: =($B$4*$N$24)/1000 -> 29,663 | R38: =($B$4*$N$24)/1000 -> 29,663 | S38: =($B$4*$S$24)/1000 -> 29,387 | T38: <==Rent increase in year 6,11, and 16
A39: Less Vacancy | D39: =-D38*(1-D27) -> (332) | E39: 0 | F39: 0 | G39: 0 | H39: 0 | I39: 0 | J39: 0 | K39: 0 | L39: 0 | M39: 0 | N39: 0 | O39: 0 | P39: 0 | Q39: 0 | R39: 0 | S39: 0
A40: Effective Gross Income | D40: =SUM(D38:D39) -> 26,892 | E40: =SUM(E38:E39) -> 27,224 | F40: 27,224 | G40: 27,224 | H40: 27,224 | I40: 30,134 | J40: 30,134 | K40: 30,134 | L40: 30,134 | M40: 30,134 | N40: 29,663 | O40: =SUM(O38:O39) -> 29,663 | P40: =SUM(P38:P39) -> 29,663 | Q40: =SUM(Q38:Q39) -> 29,663 | R40: =SUM(R38:R39) -> 29,663 | S40: =SUM(S38:S39) -> 29,387
A41: Operating Expenses | D41: =-(($B$4*$B$10)/1000)*D27 -> (6,915) | E41: =-(($B$4*$B$10)/1000)*E27 -> (7,000) | F41: (7,000) | G41: (7,000) | H41: (7,000) | I41: (7,000) | J41: (7,000) | K41: (7,000) | L41: (7,000) | M41: (7,000) | N41: (7,000) | O41: (7,000) | P41: (7,000) | Q41: (7,000) | R41: (7,000) | S41: (7,000)
A42: PBTCF | D42: =SUM(D40:D41) -> 19,978 | E42: =SUM(E40:E41) -> 20,224 | F42: 20,224 | G42: 20,224 | H42: 20,224 | I42: 23,134 | J42: 23,134 | K42: 23,134 | L42: 23,134 | M42: 23,134 | N42: 22,663 | O42: 22,663 | P42: 22,663 | Q42: 22,663 | R42: 22,663 | S42: 22,387
A43: Reversion PBTCF | R43: =S42/B20 -> 298,488
A45: Total PBTCF | C45: =C36 -> (212,800) | D45: =SUM(D42:D43) -> 19,978 | E45: =SUM(E42:E43) -> 20,224 | F45: 20,224 | G45: 20,224 | H45: 20,224 | I45: 23,134 | J45: 23,134 | K45: 23,134 | L45: 23,134 | M45: 23,134 | N45: 22,663 | O45: 22,663 | P45: 22,663 | Q45: 22,663 | R45: 321,151
A47: NPV | B47: =NPV(B17,D45:R45)+C45 -> 58,115

Sheet Phase 1+2
A2: Scenario | B2: Phase 1+2 | G2: <== From Assumptions Tab
A4: Phase One Size (Rentable Area) | B4: =Assumptions!B4 -> 1,000,000 | C4: SF
A5: Phase Two Size (Rentable Area) | B5: =Assumptions!B5 -> 1,000,000 | C5: SF
A6: Total Size Rentable Area | B6: =Assumptions!B6 -> 2,000,000 | C6: SF
A10: Operating Expenses | B10: =Assumptions!B10 -> $7.00 | C10: PSF
A13: Interest Rates
A14: 10 Year US Treasury | B14: =Assumptions!B14 -> 6.35% | C14: <== 1997 Average
A15: Risk Free Rate | B15: =Assumptions!B15 -> 4.85% | C15: <== 10 Yr Treasury Less 150 bps
A16: Stabilized Class A Risk Premium | B16: =Assumptions!B16 -> 3.50% | C16: <== gm, p252
A17: OCC (r = rf + RP) | B17: =Assumptions!B17 -> 8.35%
H18: P1 | J18: =B4/B6 -> 50%
A19: Discount Rate | B19: =Assumptions!B19 -> 9.50% | C19: <== NCRIEF 1997 Historic Total Return | H19: P2 | J19: =B5/B6 -> 50%
A20: Exit Cap Rate | B20: =Assumptions!B20 -> 7.50% | C20: <== +/- Average 2007 Downtown Office | H20: Total Building | J20: =SUM(J18:J19) -> 100%
D23: 1 | E23: 2 | F23: 3 | G23: 4 | H23: 5 | I23: 6 | J23: 7 | K23: 8 | L23: 9 | M23: 10 | N23: 11 | O23: 12 | P23: 13 | Q23: 14 | R23: 15 | S23: 16
A24: Rent | D24: =Rent!J12 -> 27.22 | E24: =Rent!J13 -> 23.69 | F24: =Rent!J14 -> 27.46 | G24: =Rent!J15 -> 25.85 | H24: =Rent!J16 -> 26.43 | I24: =Rent!J17 -> 30.13 | J24: =Rent!J18 -> 23.81 | K24: =Rent!J19 -> 25.50 | L24: =Rent!J20 -> 22.94 | M24: =Rent!J21 -> 26.96 | N24: =Rent!J22 -> 29.66 | O24: =Rent!J23 -> 24.86 | P24: =Rent!J24 -> 29.87 | Q24: =Rent!J25 -> 27.93 | R24: =Rent!J26 -> 27.71 | S24: =Rent!J27 -> 29.39
A26: Cumulative Total Lease-Up | D26: ='Lease-Up'!B11 -> 49% | E26: ='Lease-Up'!C11 -> 70% | F26: ='Lease-Up'!D11 -> 71% | G26: ='Lease-Up'!E11 -> 73% | H26: ='Lease-Up'!F11 -> 82% | I26: ='Lease-Up'!G11 -> 89% | J26: ='Lease-Up'!H11 -> 90% | K26: ='Lease-Up'!I11 -> 94% | L26: ='Lease-Up'!J11 -> 94% | M26: ='Lease-Up'!K11 -> 96% | N26: ='Lease-Up'!L11 -> 98% | O26: ='Lease-Up'!M11 -> 98% | P26: ='Lease-Up'!N11 -> 99% | Q26: ='Lease-Up'!O11 -> 99% | R26: ='Lease-Up'!P11 -> 100% | S26: ='Lease-Up'!Q11 -> 100%
A27: % of P1 Leased | D27: =IF(D26/$J$18<1, D26/$J$18,1) -> 99% | E27: 100% | F27: 100% | G27: 100% | H27: 100% | I27: 100% | J27: 100% | K27: 100% | L27: 100% | M27: 100% | N27: 100% | O27: 100% | P27: 100% | Q27: 100% | R27: 100% | S27: 100%
A28: % of Total as P2 Pre-Leasing Contracts | D28: =IF(D27=1,D26-$J$18,0) -> 0% | E28: 20% | F28: 21% | G28: 23% | H28: 32% | I28: 39% | J28: 40% | K28: 44% | L28: 44% | M28: 46% | N28: 48% | O28: 48% | P28: 49% | Q28: 49% | R28: 50% | S28: 50%
A30: % of Total From P1 | D30: =IF(D26<$J$18,D26,$J$18) -> 49% | E30: 50% | F30: 50% | G30: 50% | H30: 50% | I30: 50% | J30: 50% | K30: 50% | L30: 50% | M30: 50% | N30: 50% | O30: 50% | P30: 50% | Q30: 50% | R30: 50% | S30: 50%
A31: =A28 -> % of Total as P2 Pre-Leasing Contracts | D31: =D28 -> 0% | E31: =E28 -> 20% | F31: 21% | G31: 23% | H31: 32% | I31: 39% | J31: 40% | K31: 44% | L31: 44% | M31: 46% | N31: 48% | O31: =O28 -> 48% | P31: =P28 -> 49% | Q31: =Q28 -> 49% | R31: =R28 -> 50% | S31: =S28 -> 50%
A32: P1 + Pre-Leasing | D32: =SUM(D30:D31) -> 49% | E32: 70% | F32: 71% | G32: 73% | H32: 82% | I32: 89% | J32: 90% | K32: 94% | L32: 94% | M32: 96% | N32: 98% | O32: 98% | P32: 99% | Q32: 99% | R32: 100% | S32: 100%
A33: Remainder of Total to be Leased | D33: =1-D32 -> 51% | E33: =1-E32 -> 30% | F33: 29% | G33: 27% | H33: 18% | I33: 11% | J33: 10% | K33: 6% | L33: 6% | M33: 4% | N33: 2% | O33: =1-O32 -> 2% | P33: =1-P32 -> 1% | Q33: =1-Q32 -> 1% | R33: =1-R32 -> 0% | S33: =1-S32 -> 0%
A34: % of P2 Leased | D34: =D31/$J$19 -> 0% | E34: 40% | F34: 41% | G34: 46% | H34: 64% | I34: 79% | J34: 81% | K34: 87% | L34: 88% | M34: 93% | N34: 96% | O34: 96% | P34: 98% | Q34: 99% | R34: 99% | S34: 99%
D37: PROJECTED NET OPERATING INCOME AND CASH FLOW FROM OPERATIONS
D38: ( $ in Thousands)
A40: Year | C40: 1995-1997 | D40: 1998 | E40: 1999 | F40: 2000 | G40: 2001 | H40: 2002 | I40: 2003 | J40: 2004 | K40: 2005 | L40: 2006 | M40: 2007 | N40: 2008 | O40: 2009 | P40: 2010 | Q40: 2011 | R40: 2012 | S40: 2013
C41: 0 | D41: 1 | E41: 2 | F41: 3 | G41: 4 | H41: 5 | I41: 6 | J41: 7 | K41: 8 | L41: 9 | M41: 10 | N41: 11 | O41: 12 | P41: 13 | Q41: 14 | R41: 15 | S41: 16
A43: Development Cost | C43: =-'Prop Characteristics'!C19 -> (393,336)
A45: Phase One Potential Gross Income | D45: =($B$4*$D$24)/1000 -> 27,224 | E45: =($B$4*$D$24)/1000 -> 27,224 | F45: =($B$4*$D$24)/1000 -> 27,224 | G45: =($B$4*$D$24)/1000 -> 27,224 | H45: =($B$4*$D$24)/1000 -> 27,224 | I45: =($B$4*$I$24)/1000 -> 30,134 | J45: =($B$4*$I$24)/1000 -> 30,134 | K45: =($B$4*$I$24)/1000 -> 30,134 | L45: =($B$4*$I$24)/1000 -> 30,134 | M45: =($B$4*$I$24)/1000 -> 30,134 | N45: =($B$4*$N$24)/1000 -> 29,663 | O45: =($B$4*$N$24)/1000 -> 29,663 | P45: =($B$4*$N$24)/1000 -> 29,663 | Q45: =($B$4*$N$24)/1000 -> 29,663 | R45: =($B$4*$N$24)/1000 -> 29,663 | S45: =($B$4*$S$24)/1000 -> 29,387 | T45: <==Rent increase in year 6, 11, and 16
A46: Less Vacancy | D46: =-D45*(1-D27) -> (332) | E46: =-E45*(1-E27) -> 0 | F46: 0 | G46: 0 | H46: 0 | I46: 0 | J46: 0 | K46: 0 | L46: 0 | M46: 0 | N46: 0 | O46: 0 | P46: 0 | Q46: 0 | R46: 0 | S46: 0
A47: Phase One Effective Gross Income | D47: =SUM(D45:D46) -> 26,892 | E47: 27,224 | F47: 27,224 | G47: 27,224 | H47: 27,224 | I47: 30,134 | J47: 30,134 | K47: 30,134 | L47: 30,134 | M47: 30,134 | N47: 29,663 | O47: =SUM(O45:O46) -> 29,663 | P47: =SUM(P45:P46) -> 29,663 | Q47: =SUM(Q45:Q46) -> 29,663 | R47: =SUM(R45:R46) -> 29,663 | S47: =SUM(S45:S46) -> 29,387
A48: Operating Expenses | D48: =-(($B$4*$B$10)/1000)*D27 -> (6,915) | E48: =-(($B$4*$B$10)/1000)*E27 -> (7,000) | F48: (7,000) | G48: (7,000) | H48: (7,000) | I48: (7,000) | J48: (7,000) | K48: (7,000) | L48: (7,000) | M48: (7,000) | N48: (7,000) | O48: (7,000) | P48: (7,000) | Q48: (7,000) | R48: (7,000) | S48: (7,000)
A49: PBTCF | D49: =SUM(D47:D48) -> 19,978 | E49: =SUM(E47:E48) -> 20,224 | F49: 20,224 | G49: 20,224 | H49: 20,224 | I49: 23,134 | J49: 23,134 | K49: 23,134 | L49: 23,134 | M49: 23,134 | N49: 22,663 | O49: 22,663 | P49: 22,663 | Q49: 22,663 | R49: 22,663 | S49: 22,387
A51: Phase Two Potential Gross Income | D51: =($B$5*$D$24)/1000 -> 27,224 | E51: =($B$5*$D$24)/1000 -> 27,224 | F51: =($B$5*$D$24)/1000 -> 27,224 | G51: =($B$5*$D$24)/1000 -> 27,224 | H51: =($B$5*$D$24)/1000 -> 27,224 | I51: =($B$5*$I$24)/1000 -> 30,134 | J51: =($B$5*$I$24)/1000 -> 30,134 | K51: =($B$5*$I$24)/1000 -> 30,134 | L51: =($B$5*$I$24)/1000 -> 30,134 | M51: =($B$5*$I$24)/1000 -> 30,134 | N51: =($B$5*$N$24)/1000 -> 29,663 | O51: =($B$5*$N$24)/1000 -> 29,663 | P51: =($B$5*$N$24)/1000 -> 29,663 | Q51: =($B$5*$N$24)/1000 -> 29,663 | R51: =($B$5*$N$24)/1000 -> 29,663 | S51: =($B$5*$S$24)/1000 -> 29,387 | T51: <==Rent increase in year 6, 11, and 16
A52: Less Vacancy | D52: =-D51*(1-D34) -> (27,224) | E52: =-E51*(1-E34) -> (16,365) | F52: (15,957) | G52: (14,612) | H52: (9,673) | I52: (6,358) | J52: (5,870) | K52: (3,793) | L52: (3,631) | M52: (2,156) | N52: (1,261) | O52: (1,196) | P52: (710) | Q52: (422) | R52: (251) | S52: (248)
A53: Phase Two Effective Gross Income | D53: =SUM(D51:D52) -> 0 | E53: =SUM(E51:E52) -> 10,859 | F53: 11,268 | G53: 12,612 | H53: 17,551 | I53: 23,775 | J53: 24,263 | K53: 26,341 | L53: 26,503 | M53: 27,977 | N53: 28,402 | O53: =SUM(O51:O52) -> 28,467 | P53: =SUM(P51:P52) -> 28,953 | Q53: =SUM(Q51:Q52) -> 29,241 | R53: =SUM(R51:R52) -> 29,412 | S53: =SUM(S51:S52) -> 29,138
A54: Operating Expenses | D54: =-(($B$5*$B$10)/1000)*D34 -> 0 | E54: =-(($B$5*$B$10)/1000)*E34 -> (2,792) | F54: (2,897) | G54: (3,243) | H54: (4,513) | I54: (5,523) | J54: (5,636) | K54: (6,119) | L54: (6,157) | M54: (6,499) | N54: (6,703) | O54: (6,718) | P54: (6,832) | Q54: (6,900) | R54: (6,941) | S54: (6,941)
A55: PBTCF | D55: =SUM(D53:D54) -> 0 | E55: =SUM(E53:E54) -> 8,067 | F55: 8,370 | G55: 9,369 | H55: 13,038 | I55: 18,252 | J55: 18,627 | K55: 20,222 | L55: 20,346 | M55: 21,478 | N55: 21,700 | O55: 21,749 | P55: 22,120 | Q55: 22,341 | R55: 22,471 | S55: 22,198
A57: Total PBTCF From Operations | D57: =D49+D55 -> 19,978 | E57: =E49+E55 -> 28,291 | F57: 28,595 | G57: 29,594 | H57: 33,263 | I57: 41,386 | J57: 41,760 | K57: 43,355 | L57: 43,480 | M57: 44,612 | N57: 44,363 | O57: 44,412 | P57: 44,783 | Q57: 45,003 | R57: 45,134 | S57: 44,584
A59: Reversion PBTCF | R59: =S57/B20 -> 594,455
A61: Total PBTCF | C61: =C43 -> (393,336) | D61: =D57+D59 -> 19,978 | E61: =E57+E59 -> 28,291 | F61: 28,595 | G61: 29,594 | H61: 33,263 | I61: 41,386 | J61: 41,760 | K61: 43,355 | L61: 43,480 | M61: 44,612 | N61: 44,363 | O61: 44,412 | P61: 44,783 | Q61: 45,003 | R61: 639,589
A63: NPV | B63: =NPV(B17,D61:R61)+C61 -> 86,617

Sheet Flexible
A2: Scenario | B2: Flexible | G2: <== From Assumptions Tab
A4: Phase One Size (Rentable Area) | B4: =Assumptions!B4 -> 1,000,000 | C4: SF
A5: Phase Two Size (Rentable Area) | B5: =Assumptions!B5 -> 1,000,000 | C5: SF
A6: Total Size Rentable Area | B6: =Assumptions!B6 -> 2,000,000 | C6: SF
A8: Construction Cost Growth | B8: =Assumptions!B8 -> 2.0%
A10: Operating Expenses | B10: =Assumptions!B10 -> $7.00 | C10: PSF
A13: Interest Rates
A14: 10 Year US Treasury | B14: =Assumptions!B14 -> 6.35% | C14: <== 1997 Average
A15: Risk Free Rate | B15: =Assumptions!B15 -> 4.85% | C15: <== 10 Yr Treasury Less 150 bps
A16: Stabilized Class A Risk Premium | B16: =Assumptions!B16 -> 3.50% | C16: <== gm, p252
A17: OCC (r = rf + RP) | B17: =Assumptions!B17 -> 8.35%
H18: P1 | J18: =B4/B6 -> 50%
A19: Discount Rate | B19: =Assumptions!B19 -> 9.50% | C19: <== NCRIEF 1997 Historic Total Return | H19: P2 | J19: =B5/B6 -> 50%
A20: Exit Cap Rate | B20: =Assumptions!B20 -> 7.50% | C20: <== Average 2007 Downtown Office | H20: Total Building | J20: =SUM(J18:J19) -> 100%
D23: 1 | E23: 2 | F23: 3 | G23: 4 | H23: 5 | I23: 6 | J23: 7 | K23: 8 | L23: 9 | M23: 10 | N23: 11 | O23: 12 | P23: 13 | Q23: 14 | R23: 15 | S23: 16
A24: Rent | C24: =Rent!J11 -> 23.16 | D24: =Rent!J12 -> 27.22 | E24: =Rent!J13 -> 23.69 | F24: =Rent!J14 -> 27.46 | G24: =Rent!J15 -> 25.85 | H24: =Rent!J16 -> 26.43 | I24: =Rent!J17 -> 30.13 | J24: =Rent!J18 -> 23.81 | K24: =Rent!J19 -> 25.50 | L24: =Rent!J20 -> 22.94 | M24: =Rent!J21 -> 26.96 | N24: =Rent!J22 -> 29.66 | O24: =Rent!J23 -> 24.86 | P24: =Rent!J24 -> 29.87 | Q24: =Rent!J25 -> 27.93 | R24: =Rent!J26 -> 27.71 | S24: =Rent!J27 -> 29.39
A26: Cumulative Total Lease-Up | D26: ='Lease-Up'!B11 -> 49% | E26: ='Lease-Up'!C11 -> 70% | F26: ='Lease-Up'!D11 -> 71% | G26: ='Lease-Up'!E11 -> 73% | H26: ='Lease-Up'!F11 -> 82% | I26: ='Lease-Up'!G11 -> 89% | J26: ='Lease-Up'!H11 -> 90% | K26: ='Lease-Up'!I11 -> 94% | L26: ='Lease-Up'!J11 -> 94% | M26: ='Lease-Up'!K11 -> 96% | N26: ='Lease-Up'!L11 -> 98% | O26: ='Lease-Up'!M11 -> 98% | P26: ='Lease-Up'!N11 -> 99% | Q26: ='Lease-Up'!O11 -> 99% | R26: ='Lease-Up'!P11 -> 100% | S26: ='Lease-Up'!Q11 -> 100%
A27: % of P1 Leased | D27: =IF(D26/$J$18<1, D26/$J$18,1) -> 99% | E27: 100% | F27: 100% | G27: 100% | H27: 100% | I27: 100% | J27: 100% | K27: 100% | L27: 100% | M27: 100% | N27: 100% | O27: 100% | P27: 100% | Q27: 100% | R27: 100% | S27: 100%
A28: % of Total as P2 Pre-Leasing Contracts | D28: =IF(D27=1,D26-$J$18,0) -> 0% | E28: 20% | F28: 21% | G28: 23% | H28: 32% | I28: 39% | J28: 40% | K28: 44% | L28: 44% | M28: 46% | N28: 48% | O28: 48% | P28: 49% | Q28: 49% | R28: 50% | S28: 50%
A30: % of Total From P1 | D30: =IF(D26<$J$18,D26,$J$18) -> 49% | E30: 50% | F30: 50% | G30: 50% | H30: 50% | I30: 50% | J30: 50% | K30: 50% | L30: 50% | M30: 50% | N30: 50% | O30: 50% | P30: 50% | Q30: 50% | R30: 50% | S30: 50%
A31: =A28 -> % of Total as P2 Pre-Leasing Contracts | D31: =D28 -> 0% | E31: =E28 -> 20% | F31: 21% | G31: 23% | H31: 32% | I31: 39% | J31: 40% | K31: 44% | L31: 44% | M31: 46% | N31: 48% | O31: =O28 -> 48% | P31: =P28 -> 49% | Q31: =Q28 -> 49% | R31: =R28 -> 50% | S31: =S28 -> 50%
A32: P1 + Pre-Leasing | D32: =SUM(D30:D31) -> 49% | E32: 70% | F32: 71% | G32: 73% | H32: 82% | I32: 89% | J32: 90% | K32: 94% | L32: 94% | M32: 96% | N32: 98% | O32: 98% | P32: 99% | Q32: 99% | R32: 100% | S32: 100%
A33: Remainder of Total to be Leased | D33: =1-D32 -> 51% | E33: =1-E32 -> 30% | F33: 29% | G33: 27% | H33: 18% | I33: 11% | J33: 10% | K33: 6% | L33: 6% | M33: 4% | N33: 2% | O33: =1-O32 -> 2% | P33: =1-P32 -> 1% | Q33: =1-Q32 -> 1% | R33: =1-R32 -> 0% | S33: =1-S32 -> 0%
A34: % of P2 Pre-Leased | D34: =D31/$J$19 -> 0% | E34: 40% | F34: 41% | G34: 46% | H34: 64% | I34: 79% | J34: 81% | K34: 87% | L34: 88% | M34: 93% | N34: 96% | O34: 96% | P34: 98% | Q34: 99% | R34: 99% | S34: 99%
D37: PROJECTED NET OPERATING INCOME AND CASH FLOW FROM OPERATIONS
D38: ( $ in Thousands)
A40: Year | C40: 1995-1997 | D40: 1998 | E40: 1999 | F40: 2000 | G40: 2001 | H40: 2002 | I40: 2003 | J40: 2004 | K40: 2005 | L40: 2006 | M40: 2007 | N40: 2008 | O40: 2009 | P40: 2010 | Q40: 2011 | R40: 2012 | S40: 2013
C41: 0 | D41: 1 | E41: 2 | F41: 3 | G41: 4 | H41: 5 | I41: 6 | J41: 7 | K41: 8 | L41: 9 | M41: 10 | N41: 11 | O41: 12 | P41: 13 | Q41: 14 | R41: 15 | S41: 16
A43: Phase 1 Development Cost | C43: =-'Prop Characteristics'!C17 -> (238,336)
A45: Phase One Potential Gross Income | D45: =($B$4*$D$24)/1000 -> 27,224 | E45: =($B$4*$D$24)/1000 -> 27,224 | F45: =($B$4*$D$24)/1000 -> 27,224 | G45: =($B$4*$D$24)/1000 -> 27,224 | H45: =($B$4*$D$24)/1000 -> 27,224 | I45: =($B$4*$I$24)/1000 -> 30,134 | J45: =($B$4*$I$24)/1000 -> 30,134 | K45: =($B$4*$I$24)/1000 -> 30,134 | L45: =($B$4*$I$24)/1000 -> 30,134 | M45: =($B$4*$I$24)/1000 -> 30,134 | N45: =($B$4*$N$24)/1000 -> 29,663 | O45: =($B$4*$N$24)/1000 -> 29,663 | P45: =($B$4*$N$24)/1000 -> 29,663 | Q45: =($B$4*$N$24)/1000 -> 29,663 | R45: =($B$4*$N$24)/1000 -> 29,663 | S45: =($B$4*$S$24)/1000 -> 29,387 | T45: <==Rent increase in year 6, 11, and 16
A46: Less Vacancy | D46: =-D45*(1-D27) -> (332) | E46: =-E45*(1-E27) -> 0 | F46: 0 | G46: 0 | H46: 0 | I46: 0 | J46: 0 | K46: 0 | L46: 0 | M46: 0 | N46: 0 | O46: 0 | P46: 0 | Q46: 0 | R46: 0 | S46: 0
A47: Phase One Effective Gross Income | D47: =SUM(D45:D46) -> 26,892 | E47: 27,224 | F47: 27,224 | G47: 27,224 | H47: 27,224 | I47: 30,134 | J47: 30,134 | K47: 30,134 | L47: 30,134 | M47: 30,134 | N47: 29,663 | O47: 29,663 | P47: 29,663 | Q47: 29,663 | R47: 29,663 | S47: 29,387
A48: Operating Expenses | D48: =-(($B$4*$B$10)/1000)*D27 -> (6,915) | E48: =-(($B$4*$B$10)/1000)*E27 -> (7,000) | F48: (7,000) | G48: (7,000) | H48: (7,000) | I48: (7,000) | J48: (7,000) | K48: (7,000) | L48: (7,000) | M48: (7,000) | N48: (7,000) | O48: (7,000) | P48: (7,000) | Q48: (7,000) | R48: (7,000) | S48: (7,000)
A49: PBTCF | D49: =SUM(D47:D48) -> 19,978 | E49: 20,224 | F49: 20,224 | G49: 20,224 | H49: 20,224 | I49: 23,134 | J49: 23,134 | K49: 23,134 | L49: 23,134 | M49: 23,134 | N49: 22,663 | O49: 22,663 | P49: 22,663 | Q49: 22,663 | R49: 22,663 | S49: 22,387
A51: Phase 2 Development Cost | C51: =-'Prop Characteristics'!C18 -> (155,000) | D51: =C51*(1+$B$8) -> (158,100) | E51: (161,262) | F51: (164,487) | G51: (167,777) | H51: (171,133) | I51: (174,555) | J51: (178,046) | K51: (181,607) | L51: (185,239) | M51: (188,944) | N51: (192,723) | O51: (196,577) | P51: (200,509) | Q51: (204,519) | R51: (208,610) | S51: (212,782)
A53: Exercise Option | D53: =D80 -> NO | E53: NO | F53: NO | G53: =G80 -> NO | H53: NO | I53: NO | J53: NO | K53: NO | L53: NO | M53: NO | N53: YES | O53: NO | P53: YES | Q53: YES
A54: "YES" Count | D54: =COUNTIF(D53:Q53,"yes") -> 3 | E54: =COUNTIF(E53:Q53,"yes") -> 3 | F54: =COUNTIF(F53:Q53,"yes") -> 3 | G54: =COUNTIF(G53:Q53,"yes") -> 3 | H54: =COUNTIF(H53:Q53,"yes") -> 3 | I54: =COUNTIF(I53:Q53,"yes") -> 3 | J54: =COUNTIF(J53:Q53,"yes") -> 3 | K54: =COUNTIF(K53:Q53,"yes") -> 3 | L54: =COUNTIF(L53:Q53,"yes") -> 3 | M54: =COUNTIF(M53:Q53,"yes") -> 3 | N54: =COUNTIF(N53:Q53,"yes") -> 3 | O54: =COUNTIF(O53:Q53,"yes") -> 2 | P54: =COUNTIF(P53:Q53,"yes") -> 2 | Q54: =COUNTIF(Q53,"yes") -> 1
A56: Phase Two Potential Gross Income | F56: =F117 -> 0 | G56: 0 | H56: 0 | I56: 0 | J56: 0 | K56: 0 | L56: 0 | M56: 0 | N56: 0 | O56: 0 | P56: 24,861 | Q56: 24,861 | R56: 24,861 | S56: 24,861 | T56: <==Rent increase in year 6, 11, and 16
A57: Less Vacancy | F57: =-F56*(1-F34) -> 0 | G57: =-G56*(1-G34) -> 0 | H57: 0 | I57: 0 | J57: 0 | K57: 0 | L57: 0 | M57: 0 | N57: 0 | O57: 0 | P57: (595) | Q57: (354) | R57: (210) | S57: (210)
A58: Phase Two Effective Gross Income | F58: =SUM(F56:F57) -> 0 | G58: 0 | H58: 0 | I58: 0 | J58: 0 | K58: 0 | L58: 0 | M58: 0 | N58: 0 | O58: 0 | P58: 24,265 | Q58: 24,507 | R58: 24,651 | S58: 24,651
A59: Operating Expenses | F59: =IF(F56>0,-(($B$5*$B$10)/1000)*F34,0) -> 0 | G59: =IF(G56>0,-(($B$5*$B$10)/1000)*G34,0) -> 0 | H59: 0 | I59: 0 | J59: 0 | K59: 0 | L59: 0 | M59: 0 | N59: 0 | O59: 0 | P59: (6,832) | Q59: (6,900) | R59: (6,941) | S59: (6,941)
A60: PBTCF | F60: =SUM(F58:F59) -> 0 | G60: 0 | H60: 0 | I60: 0 | J60: 0 | K60: 0 | L60: 0 | M60: 0 | N60: 0 | O60: 0 | P60: 17,433 | Q60: 17,607 | R60: 17,710 | S60: 17,710
A63: PBTCF From Operations | D63: =D49+D60 -> 19,978 | E63: 20,224 | F63: 20,224 | G63: 20,224 | H63: 20,224 | I63: 23,134 | J63: 23,134 | K63: 23,134 | L63: 23,134 | M63: 23,134 | N63: 22,663 | O63: 22,663 | P63: 40,096 | Q63: 40,270 | R63: 40,373 | S63: 40,096
A64: Reversion PBTCF | R64: =S63/B20 -> 534,620
A66: Development Costs | C66: =C43 -> (238,336) | D66: =IF(AND(D53="yes",D54=MAX($D$54:$Q$54)),D51,0) -> 0 | E66: 0 | F66: 0 | G66: 0 | H66: 0 | I66: 0 | J66: 0 | K66: 0 | L66: 0 | M66: 0 | N66: (192,723) | O66: 0 | P66: 0
A69: Total PBTCF | D69: =SUM(D63:D64) -> 19,978 | E69: 20,224 | F69: 20,224 | G69: 20,224 | H69: 20,224 | I69: 23,134 | J69: 23,134 | K69: 23,134 | L69: 23,134 | M69: 23,134 | N69: 22,663 | O69: 22,663 | P69: 40,096 | Q69: 40,270 | R69: 574,992
A71: PV of Development Costs | C71: =NPV(B17,D66:P66)+C66 -> (318,102) | R71: Phase 2 Cost | S71: =SUM(D66:S66) -> (192,723)
A72: PV of Property | C72: =NPV(B17,D69:R69) -> 359,020
A74: NPV | B74: =SUM(C71:C72) -> 40,919
A77: Rent Growth Hurdle: | B77: 1.0% | C77: Rent CAGR: | D77: =Rent!K12 -> 17.5% | E77: =Rent!K13 -> 1.1% | F77: =Rent!K14 -> 5.8% | G77: =Rent!K15 -> 2.8% | H77: =Rent!K16 -> 2.7% | I77: =Rent!K17 -> 4.5% | J77: =Rent!K18 -> 0.4% | K77: =Rent!K19 -> 1.2% | L77: =Rent!K20 -> -0.1% | M77: =Rent!K21 -> 1.5% | N77: =Rent!K22 -> 2.3% | O77: =Rent!K23 -> 0.6% | P77: =Rent!K24 -> 2.0% | Q77: =Rent!K25 -> 1.3% | R77: <== Decions Rule: Based on the first year that rent growth and pre-leasing are >= hurdles.
A78: P2 Pre-Leasing Hurdle: | B78: 93.0% | C78: % of P2 Pre-Leased: | D78: =D34 -> 0.0% | E78: =E34 -> 39.9% | F78: 41.4% | G78: 46.3% | H78: 64.5% | I78: 78.9% | J78: 80.5% | K78: 87.4% | L78: 88.0% | M78: 92.8% | N78: 95.8% | O78: 96.0% | P78: 97.6% | Q78: 98.6%
D80: =IF(AND(D77>=$B$77,D78>=$B$78),"YES","NO") -> NO | E80: NO | F80: NO | G80: NO | H80: NO | I80: NO | J80: NO | K80: NO | L80: NO | M80: NO | N80: YES | O80: NO | P80: YES | Q80: YES
D83: =IF(AND(D53="yes",D54=MAX($D$54:$Q$54)),D41,0) -> 0 | E83: 0 | F83: 0 | G83: 0 | H83: 0 | I83: 0 | J83: 0 | K83: 0 | L83: 0 | M83: 0 | N83: 11 | O83: 0 | P83: 0 | Q83: 0
B84: Exercise Year | C84: =SUM(D83:P83) -> 11
F86: 1 | G86: 2 | H86: 3 | I86: 4 | J86: 5 | K86: 6 | L86: 7 | M86: 8 | N86: 9 | O86: 10 | P86: 11 | Q86: 12 | R86: 13 | S86: 14 | T86: <== Rents in five year leases
E87: 1 | F87: =$F$24 -> 27.46 | G87: =$F$24 -> 27.46 | H87: =$F$24 -> 27.46 | I87: =$F$24 -> 27.46 | J87: =$F$24 -> 27.46 | K87: =$K$24 -> 25.50 | L87: =$K$24 -> 25.50 | M87: =$K$24 -> 25.50 | N87: =$K$24 -> 25.50 | O87: =$K$24 -> 25.50 | P87: =$P$24 -> 29.87 | Q87: =$P$24 -> 29.87 | R87: =$P$24 -> 29.87 | S87: =$P$24 -> 29.87
E88: 2 | G88: =$G$24 -> 25.85 | H88: =$G$24 -> 25.85 | I88: =$G$24 -> 25.85 | J88: =$G$24 -> 25.85 | K88: =$K$24 -> 25.50 | L88: =$L$24 -> 22.94 | M88: =$L$24 -> 22.94 | N88: =$L$24 -> 22.94 | O88: =$L$24 -> 22.94 | P88: =$L$24 -> 22.94 | Q88: =$Q$24 -> 27.93 | R88: =$Q$24 -> 27.93 | S88: =$Q$24 -> 27.93
E89: 3 | H89: =$H$24 -> 26.43 | I89: =$H$24 -> 26.43 | J89: =$H$24 -> 26.43 | K89: =$K$24 -> 25.50 | L89: =$H$24 -> 26.43 | M89: =$M$24 -> 26.96 | N89: =$M$24 -> 26.96 | O89: =$M$24 -> 26.96 | P89: =$M$24 -> 26.96 | Q89: =$M$24 -> 26.96 | R89: =$R$24 -> 27.71 | S89: =$R$24 -> 27.71
E90: 4 | I90: =$I$24 -> 30.13 | J90: =$I$24 -> 30.13 | K90: =$K$24 -> 25.50 | L90: =$I$24 -> 30.13 | M90: =$I$24 -> 30.13 | N90: =$N$24 -> 29.66 | O90: =$N$24 -> 29.66 | P90: =$N$24 -> 29.66 | Q90: =$N$24 -> 29.66 | R90: =$N$24 -> 29.66 | S90: =$S$24 -> 29.39
E91: 5 | J91: =$J$24 -> 23.81 | K91: =$K$24 -> 25.50 | L91: =$J$24 -> 23.81 | M91: =$J$24 -> 23.81 | N91: =$J$24 -> 23.81 | O91: =$O$24 -> 24.86 | P91: =$O$24 -> 24.86 | Q91: =$O$24 -> 24.86 | R91: =$O$24 -> 24.86 | S91: =$O$24 -> 24.86
E92: 6 | K92: =$K$24 -> 25.50 | L92: =$K$24 -> 25.50 | M92: =$K$24 -> 25.50 | N92: =$K$24 -> 25.50 | O92: =$K$24 -> 25.50 | P92: =$P$24 -> 29.87 | Q92: =$P$24 -> 29.87 | R92: =$P$24 -> 29.87 | S92: =$P$24 -> 29.87
E93: 7 | L93: =$L$24 -> 22.94 | M93: =$L$24 -> 22.94 | N93: =$L$24 -> 22.94 | O93: =$L$24 -> 22.94 | P93: =$L$24 -> 22.94 | Q93: =$Q$24 -> 27.93 | R93: =$Q$24 -> 27.93 | S93: =$Q$24 -> 27.93
E94: 8 | M94: =$M$24 -> 26.96 | N94: =$M$24 -> 26.96 | O94: =$M$24 -> 26.96 | P94: =$M$24 -> 26.96 | Q94: =$M$24 -> 26.96 | R94: =$R$24 -> 27.71 | S94: =$R$24 -> 27.71
E95: 9 | N95: =$N$24 -> 29.66 | O95: =$N$24 -> 29.66 | P95: =$N$24 -> 29.66 | Q95: =$N$24 -> 29.66 | R95: =$N$24 -> 29.66 | S95: =$S$24 -> 29.39
E96: 10 | O96: =$O$24 -> 24.86 | P96: =$O$24 -> 24.86 | Q96: =$O$24 -> 24.86 | R96: =$O$24 -> 24.86 | S96: =$O$24 -> 24.86
E97: 11 | P97: =$O$24 -> 24.86 | Q97: =$O$24 -> 24.86 | R97: =$O$24 -> 24.86 | S97: =$O$24 -> 24.86
E98: 12 | Q98: =$O$24 -> 24.86 | R98: =$O$24 -> 24.86 | S98: =$O$24 -> 24.86
E99: 13 | R99: =$O$24 -> 24.86 | S99: =$O$24 -> 24.86
E100: 14 | S100: =$O$24 -> 24.86
E102: 1 | F102: =IF($E102=$C$84,($B$5*F87)/1000,0) -> 0 | G102: 0 | H102: 0 | I102: 0 | J102: 0 | K102: 0 | L102: 0 | M102: 0 | N102: 0 | O102: 0 | P102: 0 | Q102: 0 | R102: 0 | S102: 0 | T102: <== Phase 2gross income base on year exercised and five year leases
E103: 2 | F103: =IF($E103=$C$84,($B$5*F88)/1000,0) -> 0 | G103: 0 | H103: 0 | I103: 0 | J103: 0 | K103: 0 | L103: 0 | M103: 0 | N103: 0 | O103: 0 | P103: 0 | Q103: 0 | R103: 0 | S103: 0
E104: 3 | F104: =IF($E104=$C$84,($B$5*F89)/1000,0) -> 0 | G104: 0 | H104: 0 | I104: 0 | J104: 0 | K104: 0 | L104: 0 | M104: 0 | N104: 0 | O104: 0 | P104: 0 | Q104: 0 | R104: 0 | S104: 0
E105: 4 | F105: =IF($E105=$C$84,($B$5*F90)/1000,0) -> 0 | G105: 0 | H105: 0 | I105: 0 | J105: 0 | K105: 0 | L105: 0 | M105: 0 | N105: 0 | O105: 0 | P105: 0 | Q105: 0 | R105: 0 | S105: 0
E106: 5 | F106: =IF($E106=$C$84,($B$5*F91)/1000,0) -> 0 | G106: 0 | H106: 0 | I106: 0 | J106: 0 | K106: 0 | L106: 0 | M106: 0 | N106: 0 | O106: 0 | P106: 0 | Q106: 0 | R106: 0 | S106: 0
E107: 6 | F107: =IF($E107=$C$84,($B$5*F92)/1000,0) -> 0 | G107: 0 | H107: 0 | I107: 0 | J107: 0 | K107: 0 | L107: 0 | M107: 0 | N107: 0 | O107: 0 | P107: 0 | Q107: 0 | R107: 0 | S107: 0
E108: 7 | F108: =IF($E108=$C$84,($B$5*F93)/1000,0) -> 0 | G108: 0 | H108: 0 | I108: 0 | J108: 0 | K108: 0 | L108: 0 | M108: 0 | N108: 0 | O108: 0 | P108: 0 | Q108: 0 | R108: 0 | S108: 0
E109: 8 | F109: =IF($E109=$C$84,($B$5*F94)/1000,0) -> 0 | G109: 0 | H109: 0 | I109: 0 | J109: 0 | K109: 0 | L109: 0 | M109: 0 | N109: 0 | O109: 0 | P109: 0 | Q109: 0 | R109: 0 | S109: 0
E110: 9 | F110: =IF($E110=$C$84,($B$5*F95)/1000,0) -> 0 | G110: 0 | H110: 0 | I110: 0 | J110: 0 | K110: 0 | L110: 0 | M110: 0 | N110: 0 | O110: 0 | P110: 0 | Q110: 0 | R110: 0 | S110: 0
E111: 10 | F111: =IF($E111=$C$84,($B$5*F96)/1000,0) -> 0 | G111: 0 | H111: 0 | I111: 0 | J111: 0 | K111: 0 | L111: 0 | M111: 0 | N111: 0 | O111: 0 | P111: 0 | Q111: 0 | R111: 0 | S111: 0
E112: 11 | F112: =IF($E112=$C$84,($B$5*F97)/1000,0) -> 0 | G112: 0 | H112: 0 | I112: 0 | J112: 0 | K112: 0 | L112: 0 | M112: 0 | N112: 0 | O112: 0 | P112: 24,861 | Q112: 24,861 | R112: 24,861 | S112: 24,861
E113: 12 | F113: =IF($E113=$C$84,($B$5*F98)/1000,0) -> 0 | G113: 0 | H113: 0 | I113: 0 | J113: 0 | K113: 0 | L113: 0 | M113: 0 | N113: 0 | O113: 0 | P113: 0 | Q113: 0 | R113: 0 | S113: 0
E114: 13 | F114: =IF($E114=$C$84,($B$5*F99)/1000,0) -> 0 | G114: 0 | H114: 0 | I114: 0 | J114: 0 | K114: 0 | L114: 0 | M114: 0 | N114: 0 | O114: 0 | P114: 0 | Q114: 0 | R114: 0 | S114: 0
E115: 14 | F115: =IF($E115=$C$84,($B$5*F100)/1000,0) -> 0 | G115: 0 | H115: 0 | I115: 0 | J115: 0 | K115: 0 | L115: 0 | M115: 0 | N115: 0 | O115: 0 | P115: 0 | Q115: 0 | R115: 0 | S115: 0
F117: =SUM(F102:F115) -> 0 | G117: 0 | H117: 0 | I117: 0 | J117: 0 | K117: 0 | L117: 0 | M117: 0 | N117: 0 | O117: 0 | P117: 24,861 | Q117: 24,861 | R117: 24,861 | S117: 24,861

Sheet Simulation
B2: Simulation Results:
C3: Phase 1 | D3: Phase 1+2 | E3: Flexible | N3: =C5 -> $22,165 | O3: 1 | Q3: =D5 -> $39,802 | R3: 1 | T3: =E5 -> $22,686 | U3: 1
B4: Initial Investment | C4: =-'Phase 1'!C45 -> $212,800 | D4: =-'Phase 1+2'!C61 -> $393,336 | E4: =-Flexible!C43 -> $238,336 | N4: =C5 -> $22,165 | O4: 0 | Q4: =D5 -> $39,802 | R4: 0 | T4: =E5 -> $22,686 | U4: 0
B5: Expected NPV | C5: =AVERAGE(C12:C2012) -> $22,165 | D5: =AVERAGE(D12:D2012) -> $39,802 | E5: =AVERAGE(E12:E2012) -> $22,686
B6: Maximum NPV | C6: =MAX(C12:C2012) -> $81,649 | D6: =MAX(D12:D2012) -> $157,887 | E6: =MAX(E12:E2012) -> $115,340
B7: Minimum NPV | C7: =MIN(C12:C2012) -> ($26,039) | D7: =MIN(D12:D2012) -> ($54,984) | E7: =MIN(E12:E2012) -> ($51,575)
B8: Return on Investment | C8: =C5/C4 -> 10.4% | D8: =D5/D4 -> 10.1% | E8: =E5/E4 -> 9.5%
C10: Phase 1 | D10: Phase 1+2 | E10: Flexible
B11: NPV | C11: ='Phase 1'!B47 -> 58,115 | D11: ='Phase 1+2'!B63 -> 86,617 | E11: =Flexible!B74 -> 40,919 | H11: Cumulative Distribution Function
B12: 0.01 | C12: 18,914 | D12: 35,758 | E12: (6,622) | H12: ENPV Phase 1
B13: 0.01 | C13: 12,037 | D13: 16,825 | E13: 7,749 | H13: Bound | I13: Count | J13: CDF
B14: 0.01 | C14: (9,224) | D14: (17,299) | E14: (34,760) | G14: 0 | H14: =$C$7+($C$6-$C$7)/20*G14 -> ($26,039) | I14: =COUNTIF($C$12:$C$2012,"<"&TEXT(H14,"#.00000000000000000")) -> 0 | J14: =I14/2001 -> 0.00%
B15: 0.01 | C15: 46,577 | D15: 96,676 | E15: 72,069 | G15: 1 | H15: ($20,654) | I15: 2 | J15: 0.10%
B16: 0.01 | C16: (2,646) | D16: 11,485 | E16: 3,859 | G16: 2 | H16: ($15,270) | I16: 8 | J16: 0.40%
B17: 0.01 | C17: 65,672 | D17: 137,192 | E17: 113,773 | G17: 3 | H17: ($9,886) | I17: 31 | J17: 1.55%
B18: 0.01 | C18: 43,969 | D18: 76,982 | E18: 58,268 | G18: 4 | H18: ($4,501) | I18: 83 | J18: 4.15%
B19: 0.01 | C19: 19,214 | D19: 19,987 | E19: 26,476 | G19: 5 | H19: $883 | I19: 170 | J19: 8.50%
B20: 0.01 | C20: 17,014 | D20: 35,534 | E20: 36,917 | G20: 6 | H20: $6,268 | I20: 314 | J20: 15.69%
B21: 0.01 | C21: 26,622 | D21: 57,624 | E21: 21,186 | G21: 7 | H21: $11,652 | I21: 499 | J21: 24.94%
B22: 0.01 | C22: 32,828 | D22: 63,684 | E22: 39,744 | G22: 8 | H22: $17,036 | I22: 763 | J22: 38.13%
B23: 0.01 | C23: 6,412 | D23: 18,186 | E23: 11,840 | G23: 9 | H23: $22,421 | I23: 1028 | J23: 51.37%
B24: 0.01 | C24: (13,432) | D24: (26,558) | E24: (35,312) | G24: 10 | H24: $27,805 | I24: 1306 | J24: 65.27%
B25: 0.01 | C25: 18,510 | D25: 30,365 | E25: 13,286 | G25: 11 | H25: $33,190 | I25: 1541 | J25: 77.01%
B26: 0.01 | C26: (9,981) | D26: (8,193) | E26: (35,517) | G26: 12 | H26: $38,574 | I26: 1707 | J26: 85.31%
B27: 0.01 | C27: 23,846 | D27: 50,877 | E27: 12,963 | G27: 13 | H27: $43,959 | I27: 1830 | J27: 91.45%
B28: 0.01 | C28: 23,274 | D28: 38,678 | E28: (2,262) | G28: 14 | H28: $49,343 | I28: 1908 | J28: 95.35%
B29: 0.01 | C29: 35,099 | D29: 75,331 | E29: 46,316 | G29: 15 | H29: $54,727 | I29: 1949 | J29: 97.40%
B30: 0.01 | C30: (1,013) | D30: 1,974 | E30: (1,194) | G30: 16 | H30: $60,112 | I30: 1974 | J30: 98.65%
B31: 0.01 | C31: 24,575 | D31: 47,623 | E31: 44,573 | G31: 17 | H31: $65,496 | I31: 1990 | J31: 99.45%
B32: 0.01 | C32: 45,652 | D32: 92,463 | E32: 47,597 | G32: 18 | H32: $70,881 | I32: 1996 | J32: 99.75%
B33: 0.01 | C33: 5,463 | D33: 7,971 | E33: 12,932 | G33: 19 | H33: $76,265 | I33: 1999 | J33: 99.90%
B34: 0.01 | C34: (12,186) | D34: (32,780) | E34: (37,722) | G34: 20 | H34: $81,649 | I34: 2000 | J34: 99.95%
B35: 0.01 | C35: 10,283 | D35: 11,218 | E35: (14,055)
B36: 0.01 | C36: 21,010 | D36: 34,810 | E36: 23,669 | H36: Cumulative Distribution Function
B37: 0.01 | C37: 18,805 | D37: 33,796 | E37: 3,824 | H37: ENPV Phase 1+2
B38: 0.01 | C38: 23,573 | D38: 40,631 | E38: 17,509 | H38: Bound | I38: Count | J38: CDF
B39: 0.01 | C39: 37,986 | D39: 46,583 | E39: 12,450 | G39: 0 | H39: =$D$7+($D$6-$D$7)/20*G39 -> ($54,984) | I39: =COUNTIF($D$12:$D$2012,"<"&TEXT(H39,"#.00000000000000000")) -> 1 | J39: =I39/2001 -> 0.05%
B40: 0.01 | C40: 6,079 | D40: 3,117 | E40: 3,710 | G40: 1 | H40: ($44,340) | I40: 5 | J40: 0.25%
B41: 0.01 | C41: 29,756 | D41: 62,303 | E41: 60,130 | G41: 2 | H41: ($33,697) | I41: 13 | J41: 0.65%
B42: 0.01 | C42: 43,321 | D42: 85,005 | E42: 48,620 | G42: 3 | H42: ($23,053) | I42: 41 | J42: 2.05%
B43: 0.01 | C43: 12,380 | D43: 20,693 | E43: 34,856 | G43: 4 | H43: ($12,410) | I43: 95 | J43: 4.75%
B44: 0.01 | C44: 11,116 | D44: 1,836 | E44: (14,420) | G44: 5 | H44: ($1,766) | I44: 196 | J44: 9.80%
B45: 0.01 | C45: 20,574 | D45: 48,564 | E45: 30,934 | G45: 6 | H45: $8,878 | I45: 332 | J45: 16.59%
B46: 0.01 | C46: 17,465 | D46: 31,260 | E46: 19,273 | G46: 7 | H46: $19,521 | I46: 518 | J46: 25.89%
B47: 0.01 | C47: 15,287 | D47: 32,101 | E47: 13,504 | G47: 8 | H47: $30,165 | I47: 757 | J47: 37.83%
B48: 0.01 | C48: 29,655 | D48: 59,814 | E48: 25,392 | G48: 9 | H48: $40,808 | I48: 1036 | J48: 51.77%
B49: 0.01 | C49: 11,632 | D49: 28,621 | E49: 12,725 | G49: 10 | H49: $51,452 | I49: 1305 | J49: 65.22%
B50: 0.01 | C50: (9,768) | D50: (25,133) | E50: (7,865) | G50: 11 | H50: $62,095 | I50: 1524 | J50: 76.16%
B51: 0.01 | C51: 47,108 | D51: 84,984 | E51: 73,759 | G51: 12 | H51: $72,739 | I51: 1720 | J51: 85.96%
B52: 0.01 | C52: 25,688 | D52: 47,871 | E52: 39,519 | G52: 13 | H52: $83,383 | I52: 1832 | J52: 91.55%
B53: 0.01 | C53: 28,452 | D53: 60,185 | E53: 40,014 | G53: 14 | H53: $94,026 | I53: 1913 | J53: 95.60%
B54: 0.01 | C54: 12,317 | D54: 19,939 | E54: 12,605 | G54: 15 | H54: $104,670 | I54: 1949 | J54: 97.40%
B55: 0.01 | C55: 33,199 | D55: 64,202 | E55: 55,584 | G55: 16 | H55: $115,313 | I55: 1971 | J55: 98.50%
B56: 0.01 | C56: (8,483) | D56: (21,372) | E56: (34,019) | G56: 17 | H56: $125,957 | I56: 1988 | J56: 99.35%
B57: 0.01 | C57: 38,596 | D57: 81,182 | E57: 43,180 | G57: 18 | H57: $136,600 | I57: 1994 | J57: 99.65%
B58: 0.01 | C58: 43,070 | D58: 80,201 | E58: 17,534 | G58: 19 | H58: $147,244 | I58: 1999 | J58: 99.90%
B59: 0.01 | C59: 16,278 | D59: 33,906 | E59: 26,210 | G59: 20 | H59: $157,887 | I59: 2000 | J59: 99.95%
B60: 0.01 | C60: 24,899 | D60: 50,064 | E60: 12,156
B61: 0.01 | C61: 39,564 | D61: 65,449 | E61: 55,076 | H61: Cumulative Distribution Function | N61: Histogram
B62: 0.01 | C62: 18,583 | D62: 23,730 | E62: 13,452 | H62: Flexible | N62: Phase 1 | P62: Phase 1+2 | R62: Flexible
B63: 0.01 | C63: (2,938) | D63: 3,352 | E63: (28,474) | H63: Bound | I63: Count | J63: CDF | N63: Bound | O63: Count | P63: Bound | Q63: Count | R63: Bound | S63: Count
B64: 0.01 | C64: 3,880 | D64: 16,401 | E64: 14,619 | G64: 0 | H64: =$E$7+($E$6-$E$7)/20*G64 -> ($51,575) | I64: =COUNTIF($E$12:$E$2012,"<"&TEXT(H64,"#.00000000000000000")) -> 0 | J64: =I64/2001 -> 0.00% | M64: 0 | N64: =H14 -> ($26,039) | O64: 0 | P64: =H39 -> ($54,984) | Q64: 0 | R64: =H64 -> ($51,575) | S64: 0
B65: 0.01 | C65: 14,857 | D65: 8,396 | E65: (10,679) | G65: 1 | H65: ($43,229) | I65: 2 | J65: 0.10% | M65: 1 | N65: ($20,654) | O65: =I15-I14 -> 2 | P65: ($44,340) | Q65: =I40-I39 -> 4 | R65: ($43,229) | S65: =I65-I64 -> 2
B66: 0.01 | C66: 13,493 | D66: 25,335 | E66: (12,043) | G66: 2 | H66: ($34,883) | I66: 17 | J66: 0.85% | M66: 2 | N66: ($15,270) | O66: 6 | P66: ($33,697) | Q66: 8 | R66: ($34,883) | S66: 15
B67: 0.01 | C67: 25,039 | D67: 33,966 | E67: 15,675 | G67: 3 | H67: ($26,538) | I67: 58 | J67: 2.90% | M67: 3 | N67: ($9,886) | O67: 23 | P67: ($23,053) | Q67: 28 | R67: ($26,538) | S67: 41
B68: 0.01 | C68: (484) | D68: (19,167) | E68: (26,020) | G68: 4 | H68: ($18,192) | I68: 153 | J68: 7.65% | M68: 4 | N68: ($4,501) | O68: 52 | P68: ($12,410) | Q68: 54 | R68: ($18,192) | S68: 95
B69: 0.01 | C69: 29,797 | D69: 53,572 | E69: 47,809 | G69: 5 | H69: ($9,846) | I69: 261 | J69: 13.04% | M69: 5 | N69: $883 | O69: 87 | P69: ($1,766) | Q69: 101 | R69: ($9,846) | S69: 108
B70: 0.01 | C70: 14,083 | D70: 14,977 | E70: (7,687) | G70: 6 | H70: ($1,500) | I70: 411 | J70: 20.54% | M70: 6 | N70: $6,268 | O70: 144 | P70: $8,878 | Q70: 136 | R70: ($1,500) | S70: 150
B71: 0.01 | C71: 22,597 | D71: 34,049 | E71: 16,838 | G71: 7 | H71: $6,845 | I71: 588 | J71: 29.39% | M71: 7 | N71: $11,652 | O71: 185 | P71: $19,521 | Q71: 186 | R71: $6,845 | S71: 177
B72: 0.01 | C72: 17,198 | D72: 46,021 | E72: 18,988 | G72: 8 | H72: $15,191 | I72: 811 | J72: 40.53% | M72: 8 | N72: $17,036 | O72: 264 | P72: $30,165 | Q72: 239 | R72: $15,191 | S72: 223
B73: 0.01 | C73: 40,154 | D73: 79,715 | E73: 14,618 | G73: 9 | H73: $23,537 | I73: 1032 | J73: 51.57% | M73: 9 | N73: $22,421 | O73: 265 | P73: $40,808 | Q73: 279 | R73: $23,537 | S73: 221
B74: 0.01 | C74: 53,669 | D74: 107,847 | E74: 43,078 | G74: 10 | H74: $31,883 | I74: 1257 | J74: 62.82% | M74: 10 | N74: $27,805 | O74: 278 | P74: $51,452 | Q74: 269 | R74: $31,883 | S74: 225
B75: 0.01 | C75: 5,114 | D75: 7,983 | E75: (20,422) | G75: 11 | H75: $40,228 | I75: 1448 | J75: 72.36% | M75: 11 | N75: $33,190 | O75: 235 | P75: $62,095 | Q75: 219 | R75: $40,228 | S75: 191
B76: 0.01 | C76: 1,068 | D76: (14,017) | E76: (907) | G76: 12 | H76: $48,574 | I76: 1634 | J76: 81.66% | M76: 12 | N76: $38,574 | O76: 166 | P76: $72,739 | Q76: 196 | R76: $48,574 | S76: 186
B77: 0.01 | C77: (11,727) | D77: (16,210) | E77: (37,263) | G77: 13 | H77: $56,920 | I77: 1791 | J77: 89.51% | M77: 13 | N77: $43,959 | O77: 123 | P77: $83,383 | Q77: 112 | R77: $56,920 | S77: 157
B78: 0.01 | C78: 4,505 | D78: 11,405 | E78: (21,031) | G78: 14 | H78: $65,266 | I78: 1882 | J78: 94.05% | M78: 14 | N78: $49,343 | O78: 78 | P78: $94,026 | Q78: 81 | R78: $65,266 | S78: 91
B79: 0.01 | C79: 44,021 | D79: 63,171 | E79: 44,779 | G79: 15 | H79: $73,611 | I79: 1934 | J79: 96.65% | M79: 15 | N79: $54,727 | O79: 41 | P79: $104,670 | Q79: 36 | R79: $73,611 | S79: 52
B80: 0.01 | C80: 19,494 | D80: 31,308 | E80: 26,883 | G80: 16 | H80: $81,957 | I80: 1965 | J80: 98.20% | M80: 16 | N80: $60,112 | O80: 25 | P80: $115,313 | Q80: 22 | R80: $81,957 | S80: 31
B81: 0.01 | C81: 19,878 | D81: 37,640 | E81: 25,422 | G81: 17 | H81: $90,303 | I81: 1983 | J81: 99.10% | M81: 17 | N81: $65,496 | O81: 16 | P81: $125,957 | Q81: 17 | R81: $90,303 | S81: 18
B82: 0.01 | C82: 35,766 | D82: 74,317 | E82: 55,067 | G82: 18 | H82: $98,649 | I82: 1993 | J82: 99.60% | M82: 18 | N82: $70,881 | O82: 6 | P82: $136,600 | Q82: 6 | R82: $98,649 | S82: 10
B83: 0.01 | C83: 12,625 | D83: 20,776 | E83: 24,795 | G83: 19 | H83: $106,994 | I83: 1997 | J83: 99.80% | M83: 19 | N83: $76,265 | O83: 3 | P83: $147,244 | Q83: 5 | R83: $106,994 | S83: 4
B84: 0.01 | C84: 11,606 | D84: 23,617 | E84: 43,837 | G84: 20 | H84: $115,340 | I84: 2000 | J84: 99.95% | M84: 20 | N84: $81,649 | O84: 1 | P84: $157,887 | Q84: 1 | R84: $115,340 | S84: 3
B85: 0.01 | C85: (2,145) | D85: (720) | E85: (12,551)
B86: 0.01 | C86: (13,602) | D86: (54,984) | E86: (39,138)
B87: 0.01 | C87: 5,330 | D87: 5,036 | E87: 7,270
B88: 0.01 | C88: 33,294 | D88: 61,630 | E88: 46,129
B89: 0.01 | C89: 27,713 | D89: 52,958 | E89: 46,992
B90: 0.01 | C90: 36,400 | D90: 49,126 | E90: 47,399
B91: 0.01 | C91: 38,356 | D91: 72,905 | E91: 33,170
B92: 0.01 | C92: 19,502 | D92: 43,943 | E92: 23,218
B93: 0.01 | C93: 38,064 | D93: 83,403 | E93: 57,474
B94: 0.01 | C94: (3,796) | D94: (34,683) | E94: (31,348)
B95: 0.01 | C95: 22,327 | D95: 45,055 | E95: 6,784
B96: 0.01 | C96: 10,667 | D96: 4,990 | E96: 10,074
B97: 0.01 | C97: 44,084 | D97: 74,282 | E97: 51,464
B98: 0.01 | C98: 24,469 | D98: 19,016 | E98: 2,620
B99: 0.01 | C99: (617) | D99: 3,969 | E99: (5,609)
B100: 0.01 | C100: 36,190 | D100: 83,461 | E100: 62,174
B101: 0.01 | C101: 29,710 | D101: 22,859 | E101: 22,507
B102: 0.01 | C102: 25,873 | D102: 66,963 | E102: 50,870
B103: 0.01 | C103: 41,786 | D103: 77,749 | E103: 76,284
B104: 0.01 | C104: 39,727 | D104: 70,528 | E104: 68,142
B105: 0.01 | C105: 8,342 | D105: (844) | E105: 23,137
B106: 0.01 | C106: 12,878 | D106: 28,996 | E106: 47,842
B107: 0.01 | C107: 17,664 | D107: 32,776 | E107: (7,872)
B108: 0.01 | C108: 21,637 | D108: 46,764 | E108: (3,899)
B109: 0.01 | C109: 17,257 | D109: 27,407 | E109: (7,053)
B110: 0.01 | C110: 20,150 | D110: 33,101 | E110: 12,565
B111: 0.01 | C111: 20,345 | D111: 46,444 | E111: 56,346
B112: 0.01 | C112: 18,025 | D112: 38,576 | E112: 5,433
B113: 0.01 | C113: 22,793 | D113: 50,936 | E113: 39,048
B114: 0.01 | C114: 7,862 | D114: 17,505 | E114: (4,806)
B115: 0.01 | C115: 7,637 | D115: 17,821 | E115: 14,487
B116: 0.01 | C116: 11,994 | D116: 21,952 | E116: 7,261
B117: 0.01 | C117: 16,944 | D117: 43,809 | E117: 24,037
B118: 0.01 | C118: 25,560 | D118: 28,968 | E118: 29,531
B119: 0.01 | C119: 22,534 | D119: 48,722 | E119: 48,780
B120: 0.01 | C120: 8,737 | D120: 16,557 | E120: 8,220
B121: 0.01 | C121: 38,881 | D121: 77,294 | E121: 55,957
B122: 0.01 | C122: 46,752 | D122: 84,782 | E122: 58,632
B123: 0.01 | C123: (12,850) | D123: (29,179) | E123: (29,761)
B124: 0.01 | C124: 15,077 | D124: 19,261 | E124: 13,426
B125: 0.01 | C125: 3,350 | D125: (6,871) | E125: (22,186)
B126: 0.01 | C126: 31,492 | D126: 56,546 | E126: 27,645
B127: 0.01 | C127: 60,165 | D127: 105,388 | E127: 60,473
B128: 0.01 | C128: 19,205 | D128: 30,844 | E128: 9,468
B129: 0.01 | C129: 8,475 | D129: 24,198 | E129: 6,333
B130: 0.01 | C130: 3,334 | D130: (17,539) | E130: (4,534)
B131: 0.01 | C131: 25,960 | D131: 32,588 | E131: 39,357
B132: 0.01 | C132: 42,959 | D132: 75,159 | E132: 59,326
B133: 0.01 | C133: 7,845 | D133: 17,066 | E133: 20,097
B134: 0.01 | C134: 1,761 | D134: 14,324 | E134: (9,621)
B135: 0.01 | C135: 40,890 | D135: 91,842 | E135: 87,257
B136: 0.01 | C136: 4,656 | D136: 21,904 | E136: (20,880)
B137: 0.01 | C137: 22,851 | D137: 39,690 | E137: (2,685)
B138: 0.01 | C138: 2,038 | D138: (12,375) | E138: (23,498)
B139: 0.01 | C139: 36,564 | D139: 74,498 | E139: 39,464
B140: 0.01 | C140: 49,709 | D140: 86,096 | E140: 75,620
B141: 0.01 | C141: 35,779 | D141: 79,503 | E141: 51,805
B142: 0.01 | C142: 39,084 | D142: 58,390 | E142: 13,548
B143: 0.01 | C143: 21,692 | D143: 38,275 | E143: (3,844)
B144: 0.01 | C144: 40,657 | D144: 67,300 | E144: 54,669
B145: 0.01 | C145: (19,928) | D145: (42,845) | E145: (45,464)
B146: 0.01 | C146: 50,092 | D146: 76,736 | E146: 61,134
B147: 0.01 | C147: 39,168 | D147: 74,371 | E147: 57,910
B148: 0.01 | C148: 24,652 | D148: 43,130 | E148: 25,030
B149: 0.01 | C149: 14,394 | D149: 19,984 | E149: 3,191
B150: 0.01 | C150: (5,251) | D150: (15,391) | E150: (21,094)
B151: 0.01 | C151: (4,600) | D151: 472 | E151: (11,946)
B152: 0.01 | C152: 37,707 | D152: 79,838 | E152: 49,059
B153: 0.01 | C153: 28,090 | D153: 49,302 | E153: 26,003
B154: 0.01 | C154: 13,688 | D154: 25,707 | E154: 25,106
B155: 0.01 | C155: 41,699 | D155: 69,427 | E155: 16,163
B156: 0.01 | C156: 19,568 | D156: 29,546 | E156: 17,322
B157: 0.01 | C157: 5,934 | D157: 3,758 | E157: (1,303)
B158: 0.01 | C158: 47,728 | D158: 101,508 | E158: 58,005
B159: 0.01 | C159: 33,543 | D159: 51,229 | E159: 8,007
B160: 0.01 | C160: 18,111 | D160: 36,617 | E160: 9,698
B161: 0.01 | C161: 20,578 | D161: 30,842 | E161: 10,997
B162: 0.01 | C162: 47,681 | D162: 89,498 | E162: 48,204
B163: 0.01 | C163: 37,644 | D163: 72,741 | E163: 46,499
B164: 0.01 | C164: 15,525 | D164: 27,566 | E164: 25,301
B165: 0.01 | C165: 28,898 | D165: 57,062 | E165: 50,144
B166: 0.01 | C166: 23,193 | D166: 42,755 | E166: 8,668
B167: 0.01 | C167: 40,220 | D167: 87,291 | E167: 44,924
B168: 0.01 | C168: 5,730 | D168: 11,154 | E168: (19,806)
B169: 0.01 | C169: 19,712 | D169: 31,499 | E169: 25,242
B170: 0.01 | C170: 66,644 | D170: 127,996 | E170: 100,885
B171: 0.01 | C171: 46,416 | D171: 72,119 | E171: 33,195
B172: 0.01 | C172: 30,461 | D172: 48,205 | E172: 27,773
B173: 0.01 | C173: 23,964 | D173: 61,334 | E173: 54,607
B174: 0.01 | C174: 18,001 | D174: 43,039 | E174: 14,948
B175: 0.01 | C175: 23,834 | D175: 56,153 | E175: 19,115
B176: 0.01 | C176: 9,325 | D176: 17,401 | E176: (16,211)
B177: 0.01 | C177: 25,680 | D177: 39,767 | E177: 144
B178: 0.01 | C178: 17,044 | D178: 41,619 | E178: 10,678
B179: 0.01 | C179: 14,899 | D179: 9,153 | E179: 10,372
B180: 0.01 | C180: 12,190 | D180: 19,485 | E180: (10,219)
B181: 0.01 | C181: 22,678 | D181: 44,098 | E181: 25,969
B182: 0.01 | C182: 33,551 | D182: 56,856 | E182: 42,919
B183: 0.01 | C183: 32,007 | D183: 68,550 | E183: 53,424
B184: 0.01 | C184: 34,416 | D184: 45,494 | E184: 49,396
B185: 0.01 | C185: 39,958 | D185: 69,679 | E185: 10,410
B186: 0.01 | C186: 29,814 | D186: 56,810 | E186: 34,817
B187: 0.01 | C187: 27,461 | D187: 61,084 | E187: 38,971
B188: 0.01 | C188: 9,464 | D188: 17,700 | E188: 15,517
B189: 0.01 | C189: 25,329 | D189: 43,672 | E189: 14,304
B190: 0.01 | C190: 18,354 | D190: 23,649 | E190: 21,781
B191: 0.01 | C191: 14,169 | D191: 37,555 | E191: 41,256
B192: 0.01 | C192: 4,216 | D192: (9,085) | E192: (21,320)
B193: 0.01 | C193: 48,779 | D193: 90,371 | E193: 78,167
B194: 0.01 | C194: 8,422 | D194: 28,209 | E194: (4,476)
B195: 0.01 | C195: 18,188 | D195: 27,635 | E195: (7,348)
B196: 0.01 | C196: 20,795 | D196: 42,497 | E196: 36,679
B197: 0.01 | C197: 15,531 | D197: 36,674 | E197: 16,415
B198: 0.01 | C198: 25,608 | D198: 44,557 | E198: 32,741
B199: 0.01 | C199: 29,614 | D199: 29,931 | E199: 8,572
B200: 0.01 | C200: 38,738 | D200: 76,113 | E200: 42,586
B201: 0.01 | C201: 14,282 | D201: 26,246 | E201: 24,135
B202: 0.01 | C202: 25,306 | D202: 57,751 | E202: (230)
... 1811 more rows
